[Event "*** Titled Tuesday 3|2 Blitz"]
[Site "Chess.com"]
[Date "2015.05.05"]
[Round "4"]
[White "DanielRensch"]
[Black "Rijeka1999"]
[Result "1-0"]
[WhiteElo "2277"]
[BlackElo "2210"]
[TimeControl "180+2"]
[EndTime "11:52:01 PDT"]
[Termination "DanielRensch won by resignation"]

1. e4 {[%clk 0:03:01.9]} 1... e5 {[%clk 0:03:00.3]} 2. Nf3 {[%clk 0:03:02.9]}
2... Nc6 {[%clk 0:03:00.2]} 3. d4 {[%clk 0:03:04.5]} 3... exd4 {[%clk 0:03:00]}
4. Nxd4 {[%clk 0:03:06.4]} 4... Nf6 {[%clk 0:03:01.4]} 5. Nxc6 {[%clk
0:03:07.7]} 5... bxc6 {[%clk 0:03:02.8]} 6. Bd3 {[%clk 0:03:09.6]} 6... d5
{[%clk 0:03:02.9]} 7. e5 {[%clk 0:03:11]} 7... Ng4 {[%clk 0:03:01.5]} 8. O-O
{[%clk 0:03:12.9]} 8... Bc5 {[%clk 0:02:57.5]} 9. Qe2 {[%clk 0:03:13.7]} 9...
O-O {[%clk 0:02:32.4]} 10. h3 {[%clk 0:03:13.2]} 10... Nxf2 {[%clk 0:02:27.3]}
11. Rxf2 {[%clk 0:03:13]} 11... Bxf2+ {[%clk 0:02:27.8]} 12. Qxf2 {[%clk
0:03:09.4]} 12... Qe7 {[%clk 0:02:17.6]} 13. Nc3 {[%clk 0:03:02.5]} 13... Be6
{[%clk 0:01:57.1]} 14. Be3 {[%clk 0:03:01.7]} 14... Rfe8 {[%clk 0:01:53.1]} 15.
b3 {[%clk 0:02:54.3]} 15... a5 {[%clk 0:01:49.8]} 16. Na4 {[%clk 0:02:54.3]}
16... Bd7 {[%clk 0:01:45.5]} 17. Bd4 {[%clk 0:02:53.8]} 17... h6 {[%clk
0:01:40.5]} 18. Rf1 {[%clk 0:02:53.4]} 18... Be6 {[%clk 0:01:40.5]} 19. Nc5
{[%clk 0:02:53.6]} 19... Rf8 {[%clk 0:01:36.8]} 20. a4 {[%clk 0:02:53.6]} 20...
Qg5 {[%clk 0:01:35.3]} 21. Kh2 {[%clk 0:02:14.2]} 21... Rab8 {[%clk 0:01:22.5]}
22. Qe2 {[%clk 0:02:04.9]} 22... Rb4 {[%clk 0:01:15]} 23. c3 {[%clk 0:02:03.8]}
23... Rbb8 {[%clk 0:01:14.6]} 24. Rf3 {[%clk 0:02:03.7]} 24... Qe7 {[%clk
0:01:00.4]} 25. Qf2 {[%clk 0:02:02]} 25... Kh8 {[%clk 0:00:59.1]} 26. Qg3 {[%clk
0:01:28.9]} 26... Rg8 {[%clk 0:00:28.3]} 27. Rf2 {[%clk 0:01:27.5]} 27... Rbe8
{[%clk 0:00:25.4]} 28. Bc2 {[%clk 0:01:20.7]} 28... Bc8 {[%clk 0:00:14.4]} 29.
Qd3 {[%clk 0:01:18.2]} 29... f5 {[%clk 0:00:11.4]} 30. exf6 {[%clk 0:01:14.6]}
30... Qd6+ {[%clk 0:00:12.6]} 31. Qg3 {[%clk 0:01:09.8]} 31... Qxg3+ {[%clk
0:00:12.6]} 32. Kxg3 {[%clk 0:01:11.4]} 32... gxf6+ {[%clk 0:00:14]} 33. Kh2
{[%clk 0:01:12.7]} 33... Rgf8 {[%clk 0:00:12.7]} 34. Rxf6 {[%clk 0:01:09.3]}
34... Rxf6 {[%clk 0:00:12.5]} 35. Bxf6+ {[%clk 0:01:10.9]} 35... Kg8 {[%clk
0:00:14]} 36. Bd3 {[%clk 0:01:06.7]} 36... Re1 {[%clk 0:00:13.1]} 37. Kg3 {[%clk
0:00:47.6]} 37... Re8 {[%clk 0:00:09.5]} 38. Bd4 {[%clk 0:00:41.2]} 38... Rf8
{[%clk 0:00:10.4]} 39. b4 {[%clk 0:00:40.6]} 39... axb4 {[%clk 0:00:10.1]} 40.
cxb4 {[%clk 0:00:42.5]} 40... Bf5 {[%clk 0:00:11.5]} 41. Be2 {[%clk 0:00:28.9]}
41... Rb8 {[%clk 0:00:10.1]} 42. Bc3 {[%clk 0:00:24.5]} 42... d4 {[%clk
0:00:11.5]} 43. Bc4+ {[%clk 0:00:25.2]} 43... Kh7 {[%clk 0:00:11.2]} 44. Bd2
{[%clk 0:00:25.3]} 44... Rf8 {[%clk 0:00:05.9]} 45. a5 {[%clk 0:00:25.8]} 45...
h5 {[%clk 0:00:05.7]} 46. a6 {[%clk 0:00:26.7]} 46... Ra8 {[%clk 0:00:06.8]} 47.
Bf4 {[%clk 0:00:23.9]} 47... Ra7 {[%clk 0:00:07.2]} 48. Be5 {[%clk 0:00:23.8]}
48... Kg6 {[%clk 0:00:08.5]} 49. Bxd4 {[%clk 0:00:24.3]} 49... Bc8 {[%clk
0:00:09]} 50. Bd3+ {[%clk 0:00:25.1]} 50... Kf7 {[%clk 0:00:09.5]} 51. Be4
{[%clk 0:00:25.1]} 51... Bxa6 {[%clk 0:00:08.9]} 52. Bxc6 {[%clk 0:00:24.4]}
52... Bc4 {[%clk 0:00:09.5]} 53. Bf3 {[%clk 0:00:23.6]} 53... Ra3 {[%clk
0:00:10.1]} 54. Kf4 {[%clk 0:00:24.6]} 54... Ra2 {[%clk 0:00:09.7]} 55. Bxh5+
{[%clk 0:00:24.5]} 55... Kg8 {[%clk 0:00:10.5]} 56. Bf3 {[%clk 0:00:26]} 56...
Rc2 {[%clk 0:00:07.7]} 57. h4 {[%clk 0:00:24.7]} 57... Bf7 {[%clk 0:00:07.4]}
58. Ke5 {[%clk 0:00:12.9]} 58... Rc4 {[%clk 0:00:07.8]} 59. Nd3 {[%clk
0:00:08.3]} 59... Rc2 {[%clk 0:00:09]} 60. Bc5 {[%clk 0:00:08.3]} 60... Rd2
{[%clk 0:00:08.8]} 61. Nf4 {[%clk 0:00:09.4]} 61... Rd8 {[%clk 0:00:09.7]} 62.
Bd5 {[%clk 0:00:10.1]} 62... Re8+ {[%clk 0:00:09.6]} 63. Kf6 {[%clk 0:00:11.2]}
63... Bxd5 {[%clk 0:00:09.9]} 64. Nxd5 {[%clk 0:00:13.1]} 64... Re2 {[%clk
0:00:11.4]} 65. g4 {[%clk 0:00:13.5]} 65... Re4 {[%clk 0:00:11.7]} 66. Kf5
{[%clk 0:00:13.8]} 66... Rc4 {[%clk 0:00:12.7]} 67. h5 {[%clk 0:00:14.6]} 67...
Rc2 {[%clk 0:00:13.1]} 68. g5 {[%clk 0:00:15.3]} 68... Rc1 {[%clk 0:00:14.6]}
69. Nf6+ {[%clk 0:00:15.3]} 69... Kf7 {[%clk 0:00:14.1]} 70. g6+ {[%clk
0:00:15.6]} 70... Kg7 {[%clk 0:00:15.6]} 71. Ng4 {[%clk 0:00:16.1]} 71... Rf1+
{[%clk 0:00:15.7]} 72. Kg5 {[%clk 0:00:17.3]} 72... Rg1 {[%clk 0:00:16.1]} 73.
h6+ {[%clk 0:00:18.3]} 73... Kg8 {[%clk 0:00:16.9]} 74. h7+ {[%clk 0:00:19.7]}
74... Kg7 {[%clk 0:00:17.8]} 75. Bd4+ {[%clk 0:00:21]} 1-0

[Event "*** Titled Tuesday 3|2 Blitz"]
[Site "Chess.com"]
[Date "2015.05.05"]
[Round "4"]
[White "lukas_111111"]
[Black "MITerryble"]
[Result "0-1"]
[WhiteElo "2341"]
[BlackElo "2507"]
[TimeControl "180+2"]
[EndTime "11:52:11 PDT"]
[Termination "MITerryble won by resignation"]

1. e4 {[%clk 0:03:01.9]} 1... e6 {[%clk 0:02:59.5]} 2. d4 {[%clk 0:02:57.1]}
2... d5 {[%clk 0:03:00.5]} 3. Nc3 {[%clk 0:02:57.4]} 3... Nf6 {[%clk 0:03:01.5]}
4. e5 {[%clk 0:02:57.6]} 4... Nfd7 {[%clk 0:03:02.6]} 5. f4 {[%clk 0:02:59]}
5... c5 {[%clk 0:03:04.2]} 6. Nf3 {[%clk 0:02:59.9]} 6... Nc6 {[%clk 0:03:05.6]}
7. Be3 {[%clk 0:03:00.7]} 7... Be7 {[%clk 0:03:07]} 8. Qd2 {[%clk 0:02:59.4]}
8... O-O {[%clk 0:03:07.5]} 9. dxc5 {[%clk 0:02:59.1]} 9... Bxc5 {[%clk
0:03:08]} 10. O-O-O {[%clk 0:02:44.2]} 10... Qa5 {[%clk 0:03:08]} 11. Kb1 {[%clk
0:02:43.5]} 11... Bb4 {[%clk 0:03:08.4]} 12. Nd4 {[%clk 0:02:34]} 12... Bxc3
{[%clk 0:03:07.4]} 13. Qxc3 {[%clk 0:02:33.9]} 13... Qxc3 {[%clk 0:03:08.3]} 14.
bxc3 {[%clk 0:02:35]} 14... Nb6 {[%clk 0:03:09.1]} 15. Nb5 {[%clk 0:02:08.2]}
15... Na4 {[%clk 0:03:09.6]} 16. Bd4 {[%clk 0:01:57]} 16... a6 {[%clk
0:03:05.3]} 17. Nd6 {[%clk 0:01:44.5]} 17... Nxd4 {[%clk 0:03:06.1]} 18. Rxd4
{[%clk 0:01:44.4]} 18... Nxc3+ {[%clk 0:03:08]} 19. Kb2 {[%clk 0:01:45.7]} 19...
Ne4 {[%clk 0:03:05.1]} 20. Nxe4 {[%clk 0:01:43.6]} 20... dxe4 {[%clk 0:03:07]}
21. Rxe4 {[%clk 0:01:44.6]} 21... Bd7 {[%clk 0:03:07.8]} 22. Bd3 {[%clk
0:01:36.7]} 22... Bc6 {[%clk 0:03:08.6]} 23. Re2 {[%clk 0:01:37]} 23... Rfd8
{[%clk 0:03:10.2]} 24. Rg1 {[%clk 0:01:36.7]} 24... Rd4 {[%clk 0:03:09.9]} 25.
g3 {[%clk 0:01:33]} 25... Rad8 {[%clk 0:03:10.9]} 26. Rf1 {[%clk 0:01:31.3]}
26... Rb4+ {[%clk 0:03:02.2]} 27. Ka1 {[%clk 0:01:27.7]} 27... Bd5 {[%clk
0:02:57.6]} 28. a3 {[%clk 0:01:18.2]} 28... Ra4 {[%clk 0:02:55]} 29. Kb2 {[%clk
0:01:18.6]} 29... Rc8 {[%clk 0:02:56.2]} 30. Ra1 {[%clk 0:01:12.3]} 30... g6
{[%clk 0:02:46.7]} 31. Re3 {[%clk 0:01:11.9]} 31... Rc6 {[%clk 0:02:35]} 32. Kc1
{[%clk 0:01:09.2]} 32... Rc3 {[%clk 0:02:27]} 33. Kb2 {[%clk 0:01:09.8]} 33...
Rc5 {[%clk 0:02:24.9]} 34. Kc1 {[%clk 0:01:06.1]} 34... Rca5 {[%clk 0:02:21.7]}
35. Kb2 {[%clk 0:01:06.8]} 35... Kg7 {[%clk 0:02:15.3]} 36. Re2 {[%clk
0:00:55.9]} 36... Rc5 {[%clk 0:02:11.3]} 37. Re3 {[%clk 0:00:55.5]} 37... Bc6
{[%clk 0:01:45.4]} 38. Re2 {[%clk 0:00:44.3]} 38... Rd4 {[%clk 0:01:44.7]} 39.
Re3 {[%clk 0:00:42.1]} 39... a5 {[%clk 0:01:45.8]} 40. c3 {[%clk 0:00:32.3]}
40... Rd8 {[%clk 0:01:46.2]} 41. Kc2 {[%clk 0:00:31.8]} 41... Ba4+ {[%clk
0:01:38.9]} 42. Kd2 {[%clk 0:00:23.8]} 42... Rcd5 {[%clk 0:01:36.3]} 43. Ke2
{[%clk 0:00:22.5]} 43... h6 {[%clk 0:01:01.8]} 44. Rb1 {[%clk 0:00:21.9]} 44...
Bc6 {[%clk 0:01:02.4]} 45. Rb6 {[%clk 0:00:16.1]} 45... g5 {[%clk 0:00:59.4]}
46. h4 {[%clk 0:00:16.7]} 46... g4 {[%clk 0:00:59.5]} 47. Rb1 {[%clk 0:00:15.4]}
47... R5d7 {[%clk 0:00:58.2]} 48. c4 {[%clk 0:00:14.7]} 48... Bf3+ {[%clk
0:00:57]} 49. Kd2 {[%clk 0:00:14.5]} 49... Be4 {[%clk 0:00:54.2]} 50. Rb3 {[%clk
0:00:13]} 50... a4 {[%clk 0:00:54.4]} 51. Rc3 {[%clk 0:00:13.6]} 51... Rd4
{[%clk 0:00:54.7]} 52. Ke2 {[%clk 0:00:12.1]} 52... Bf3+ {[%clk 0:00:53.4]} 53.
Kd2 {[%clk 0:00:13]} 53... Kf8 {[%clk 0:00:50.4]} 54. Kc2 {[%clk 0:00:13.4]}
54... b6 {[%clk 0:00:51.4]} 55. Kd2 {[%clk 0:00:14.2]} 55... Ke7 {[%clk
0:00:50.2]} 56. Kc2 {[%clk 0:00:15.3]} 56... R8d7 {[%clk 0:00:51.6]} 57. Kd2
{[%clk 0:00:15.1]} 57... Kd8 {[%clk 0:00:52.8]} 58. Kc2 {[%clk 0:00:16.3]} 58...
Kc7 {[%clk 0:00:54.2]} 59. c5 {[%clk 0:00:17.4]} 59... bxc5 {[%clk 0:00:35.7]}
60. Rxc5+ {[%clk 0:00:18.2]} 60... Kb6 {[%clk 0:00:37.6]} 61. Rc3 {[%clk
0:00:19.1]} 61... Bd5 {[%clk 0:00:34.1]} 62. Re1 {[%clk 0:00:18.4]} 62... Bb3+
{[%clk 0:00:32.8]} 63. Kd2 {[%clk 0:00:19.6]} 63... Bc4 {[%clk 0:00:29]} 64. Re3
{[%clk 0:00:20.6]} 64... h5 {[%clk 0:00:18.7]} 65. Kc2 {[%clk 0:00:19.7]} 65...
Bb3+ {[%clk 0:00:19.5]} 66. Kd2 {[%clk 0:00:20.7]} 66... Rd8 {[%clk 0:00:21.3]}
67. Ke2 {[%clk 0:00:18]} 67... R4d7 {[%clk 0:00:21.4]} 68. Re4 {[%clk
0:00:15.3]} 68... Rd4 {[%clk 0:00:19.2]} 69. Re3 {[%clk 0:00:14.5]} 69... R8d7
{[%clk 0:00:18.1]} 70. Kd2 {[%clk 0:00:10.6]} 70... Bc4 {[%clk 0:00:18.4]} 71.
Ke2 {[%clk 0:00:11]} 71... Rxd3 {[%clk 0:00:15.4]} 72. Rexd3 {[%clk 0:00:09.6]}
72... Rxd3 {[%clk 0:00:14.9]} 73. Rxd3 {[%clk 0:00:10.6]} 73... Kc5 {[%clk
0:00:16]} 74. Ke3 {[%clk 0:00:11.8]} 74... Bxd3 {[%clk 0:00:17.2]} 75. Kxd3
{[%clk 0:00:13.1]} 75... Kd5 {[%clk 0:00:18.8]} 76. Kc3 {[%clk 0:00:11.6]} 76...
Ke4 {[%clk 0:00:20]} 77. Kb4 {[%clk 0:00:12.9]} 77... Kf3 {[%clk 0:00:21.5]} 78.
Kxa4 {[%clk 0:00:14.5]} 78... Kxg3 {[%clk 0:00:22.9]} 79. Kb4 {[%clk 0:00:15.3]}
79... Kxf4 {[%clk 0:00:22]} 80. a4 {[%clk 0:00:16.5]} 80... g3 {[%clk
0:00:23.9]} 81. a5 {[%clk 0:00:18]} 81... g2 {[%clk 0:00:25.8]} 82. a6 {[%clk
0:00:19.9]} 82... g1=Q {[%clk 0:00:27.1]} 0-1

[Event "*** Titled Tuesday 3|2 Blitz"]
[Site "Chess.com"]
[Date "2015.05.05"]
[Round "5"]
[White "Konavets"]
[Black "amaidel"]
[Result "1-0"]
[WhiteElo "2427"]
[BlackElo "2292"]
[TimeControl "180+2"]
[EndTime "12:00:13 PDT"]
[Termination "Konavets won by resignation"]

1. e4 {[%clk 0:03:01.9]} 1... e5 {[%clk 0:03:00.4]} 2. Nf3 {[%clk 0:03:03]} 2...
Nf6 {[%clk 0:03:01.7]} 3. Nxe5 {[%clk 0:03:01.9]} 3... d6 {[%clk 0:03:02.9]} 4.
Nf3 {[%clk 0:03:03.4]} 4... Nxe4 {[%clk 0:03:04]} 5. Nc3 {[%clk 0:03:05.3]} 5...
Nf6 {[%clk 0:03:04.4]} 6. d4 {[%clk 0:03:06.2]} 6... Be7 {[%clk 0:03:05]} 7. Bd3
{[%clk 0:03:07.2]} 7... O-O {[%clk 0:03:06.1]} 8. Bg5 {[%clk 0:03:08.3]} 8... c6
{[%clk 0:03:07.1]} 9. Qd2 {[%clk 0:03:09.6]} 9... Bg4 {[%clk 0:03:06.2]} 10. Qf4
{[%clk 0:03:10.6]} 10... Bh5 {[%clk 0:03:05.2]} 11. O-O-O {[%clk 0:03:10.9]}
11... Nbd7 {[%clk 0:02:55]} 12. Kb1 {[%clk 0:03:11.7]} 12... b5 {[%clk
0:02:49.5]} 13. Ne4 {[%clk 0:03:09.2]} 13... Nxe4 {[%clk 0:02:44.6]} 14. Qxe4
{[%clk 0:03:10.3]} 14... Bg6 {[%clk 0:02:26.1]} 15. Qxe7 {[%clk 0:02:48.5]}
15... Qc7 {[%clk 0:02:26.5]} 16. Bf4 {[%clk 0:02:49.1]} 16... Rfe8 {[%clk
0:02:25.5]} 17. Qxd6 {[%clk 0:02:49.8]} 17... Qb7 {[%clk 0:02:26]} 18. Bxg6
{[%clk 0:02:48.6]} 18... hxg6 {[%clk 0:02:26.4]} 19. d5 {[%clk 0:02:50.2]} 19...
c5 {[%clk 0:02:26.6]} 20. Qc6 {[%clk 0:02:46.6]} 1-0

[Event "*** Titled Tuesday 3|2 Blitz"]
[Site "Chess.com"]
[Date "2015.05.05"]
[Round "5"]
[White "Rijeka1999"]
[Black "alturas_pacificas"]
[Result "1-0"]
[WhiteElo "2217"]
[BlackElo "2121"]
[TimeControl "180+2"]
[EndTime "12:01:37 PDT"]
[Termination "Rijeka1999 won by resignation"]

1. e4 {[%clk 0:02:56.6]} 1... g6 {[%clk 0:03:00.5]} 2. d4 {[%clk 0:02:54.7]}
2... Bg7 {[%clk 0:03:01.8]} 3. Nc3 {[%clk 0:02:52.9]} 3... d6 {[%clk 0:03:02.6]}
4. Be2 {[%clk 0:02:51.7]} 4... a6 {[%clk 0:03:00]} 5. a4 {[%clk 0:02:49.2]} 5...
Nc6 {[%clk 0:02:59.6]} 6. Be3 {[%clk 0:02:49]} 6... Nf6 {[%clk 0:02:40.9]} 7. d5
{[%clk 0:02:41.6]} 7... Nb4 {[%clk 0:02:39.1]} 8. Nf3 {[%clk 0:02:40]} 8... O-O
{[%clk 0:02:30.1]} 9. O-O {[%clk 0:02:39.9]} 9... e6 {[%clk 0:02:18.3]} 10. dxe6
{[%clk 0:02:40]} 10... Bxe6 {[%clk 0:02:16]} 11. Nd4 {[%clk 0:02:40.7]} 11...
Bd7 {[%clk 0:02:15]} 12. Qd2 {[%clk 0:02:39.6]} 12... Nc6 {[%clk 0:02:15.6]} 13.
Nxc6 {[%clk 0:02:37.1]} 13... Bxc6 {[%clk 0:02:16.3]} 14. f3 {[%clk 0:02:38.2]}
14... Re8 {[%clk 0:02:17.7]} 15. Bg5 {[%clk 0:02:33.5]} 15... Qd7 {[%clk
0:02:17.4]} 16. b3 {[%clk 0:02:28.8]} 16... Qe6 {[%clk 0:02:07.9]} 17. Rad1
{[%clk 0:02:28.9]} 17... Rad8 {[%clk 0:01:48.4]} 18. Bc4 {[%clk 0:02:28.4]}
18... Qc8 {[%clk 0:01:45.2]} 19. Qf4 {[%clk 0:02:21.8]} 19... Nh5 {[%clk
0:01:42.4]} 20. Qxf7+ {[%clk 0:02:18.1]} 20... Kh8 {[%clk 0:01:41.1]} 21. Bxd8
{[%clk 0:02:16.9]} 21... Bxc3 {[%clk 0:01:39.2]} 1-0

[Event "*** Titled Tuesday 3|2 Blitz"]
[Site "Chess.com"]
[Date "2015.05.05"]
[Round "5"]
[White "facu57"]
[Black "geeeeri"]
[Result "1-0"]
[WhiteElo "2174"]
[BlackElo "2033"]
[TimeControl "180+2"]
[EndTime "12:03:38 PDT"]
[Termination "facu57 won by resignation"]

1. e4 {[%clk 0:02:58]} 1... e6 {[%clk 0:03:01.1]} 2. d4 {[%clk 0:02:58.7]} 2...
d5 {[%clk 0:03:02.7]} 3. exd5 {[%clk 0:03:00.6]} 3... exd5 {[%clk 0:03:03.3]} 4.
Nf3 {[%clk 0:03:02.2]} 4... Nc6 {[%clk 0:03:03.5]} 5. c3 {[%clk 0:03:02.6]} 5...
Bg4 {[%clk 0:03:04.3]} 6. Bd3 {[%clk 0:03:03.6]} 6... Bd6 {[%clk 0:03:05]} 7.
O-O {[%clk 0:02:57.7]} 7... Nge7 {[%clk 0:03:06.4]} 8. Bg5 {[%clk 0:02:50.8]}
8... f6 {[%clk 0:03:06.8]} 9. Bh4 {[%clk 0:02:50.1]} 9... g5 {[%clk 0:03:05]}
10. Bg3 {[%clk 0:02:44.7]} 10... Bxg3 {[%clk 0:03:05.9]} 11. fxg3 {[%clk
0:02:45.1]} 11... Qd6 {[%clk 0:03:04.5]} 12. Nbd2 {[%clk 0:02:44]} 12... O-O-O
{[%clk 0:03:05.3]} 13. Qe2 {[%clk 0:02:41.9]} 13... h5 {[%clk 0:03:05.4]} 14.
Rae1 {[%clk 0:02:42.5]} 14... h4 {[%clk 0:03:05.8]} 15. gxh4 {[%clk 0:02:43.2]}
15... Rxh4 {[%clk 0:03:05.4]} 16. h3 {[%clk 0:02:42.7]} 16... Rdh8 {[%clk
0:03:00.8]} 17. b4 {[%clk 0:02:40.4]} 17... a6 {[%clk 0:02:50.1]} 18. hxg4
{[%clk 0:02:38.4]} 18... Rxg4 {[%clk 0:02:41]} 19. Qe6+ {[%clk 0:02:37.9]} 19...
Qxe6 {[%clk 0:02:40.8]} 20. Rxe6 {[%clk 0:02:39.5]} 20... f5 {[%clk 0:02:21.5]}
21. Ne5 {[%clk 0:02:37.8]} 21... Nxe5 {[%clk 0:02:18.9]} 22. Rxe5 {[%clk
0:02:38.7]} 22... Kd8 {[%clk 0:02:16]} 23. Bxf5 {[%clk 0:02:36.4]} 23... Rgh4
{[%clk 0:02:11.3]} 24. Nf3 {[%clk 0:02:30.9]} 24... Rf4 {[%clk 0:02:07.6]} 25.
Bd3 {[%clk 0:02:19.9]} 25... g4 {[%clk 0:02:01.8]} 26. Ng5 {[%clk 0:02:20.1]}
26... Rxf1+ {[%clk 0:01:57]} 27. Kxf1 {[%clk 0:02:20]} 27... Rf8+ {[%clk
0:01:53.8]} 28. Kg1 {[%clk 0:02:18.7]} 28... Kd7 {[%clk 0:01:55.2]} 29. Ne6
{[%clk 0:02:15.9]} 29... Rf7 {[%clk 0:01:46.4]} 30. Nc5+ {[%clk 0:02:07.8]}
30... Kc8 {[%clk 0:01:47.4]} 31. Ne6 {[%clk 0:02:05.6]} 31... Kd7 {[%clk
0:01:45.9]} 32. Ng5 {[%clk 0:01:48.7]} 32... Rf6 {[%clk 0:01:45.6]} 33. Be2
{[%clk 0:01:45.9]} 33... Rf4 {[%clk 0:01:23.2]} 34. Ne6 {[%clk 0:01:44.3]} 34...
Re4 {[%clk 0:01:24.2]} 35. Nc5+ {[%clk 0:01:44.6]} 1-0

[Event "*** Titled Tuesday 3|2 Blitz"]
[Site "Chess.com"]
[Date "2015.05.05"]
[Round "5"]
[White "vovkcoach"]
[Black "Shankland"]
[Result "0-1"]
[WhiteElo "2432"]
[BlackElo "2526"]
[TimeControl "180+2"]
[EndTime "12:04:40 PDT"]
[Termination "Shankland won by resignation"]

1. d4 {[%clk 0:03:01.5]} 1... Nf6 {[%clk 0:03:00.4]} 2. c4 {[%clk 0:03:01.5]}
2... e6 {[%clk 0:03:01.9]} 3. Nf3 {[%clk 0:03:02.4]} 3... b6 {[%clk 0:03:03.3]}
4. Nc3 {[%clk 0:03:01.9]} 4... Bb7 {[%clk 0:03:02.9]} 5. Bg5 {[%clk 0:03:02.4]}
5... Bb4 {[%clk 0:03:02.9]} 6. Nd2 {[%clk 0:03:03]} 6... h6 {[%clk 0:03:00.7]}
7. Bh4 {[%clk 0:03:03.5]} 7... O-O {[%clk 0:03:01.1]} 8. e4 {[%clk 0:03:02.5]}
8... g5 {[%clk 0:03:00.9]} 9. Bg3 {[%clk 0:03:03.5]} 9... Bxc3 {[%clk
0:03:02.5]} 10. bxc3 {[%clk 0:03:04.9]} 10... Nxe4 {[%clk 0:03:04.1]} 11. Nxe4
{[%clk 0:03:01.5]} 11... Bxe4 {[%clk 0:03:06]} 12. h4 {[%clk 0:03:02.9]} 12...
Bg6 {[%clk 0:03:04.6]} 13. hxg5 {[%clk 0:02:59.6]} 13... hxg5 {[%clk 0:03:06.1]}
14. Bd3 {[%clk 0:02:58.8]} 14... d6 {[%clk 0:02:51.1]} 15. Qe2 {[%clk
0:02:27.2]} 15... Qf6 {[%clk 0:02:41]} 16. Be4 {[%clk 0:02:27.1]} 16... Nd7
{[%clk 0:02:33.2]} 17. Bxa8 {[%clk 0:02:22.4]} 17... Rxa8 {[%clk 0:02:35.1]} 18.
O-O-O {[%clk 0:02:18]} 18... Nc5 {[%clk 0:02:20]} 19. f3 {[%clk 0:00:56.7]}
19... Na4 {[%clk 0:02:15.6]} 20. Kd2 {[%clk 0:00:46.6]} 20... Qf5 {[%clk
0:02:08.7]} 21. Ke1 {[%clk 0:00:45.2]} 21... Nxc3 {[%clk 0:02:07.9]} 22. Qd2
{[%clk 0:00:39.2]} 22... Nxd1 {[%clk 0:02:08.3]} 23. Qxd1 {[%clk 0:00:41.1]}
23... b5 {[%clk 0:02:00.2]} 24. c5 {[%clk 0:00:27.1]} 24... Rd8 {[%clk
0:01:56.3]} 25. cxd6 {[%clk 0:00:27.2]} 25... cxd6 {[%clk 0:01:58.2]} 26. Kf2
{[%clk 0:00:28.4]} 26... Qd5 {[%clk 0:01:54.7]} 27. Qd2 {[%clk 0:00:27.4]} 27...
Rc8 {[%clk 0:01:55]} 28. Kg1 {[%clk 0:00:22.3]} 28... Rc2 {[%clk 0:01:53]} 29.
Qa5 {[%clk 0:00:22.3]} 29... Qxd4+ {[%clk 0:01:43.1]} 30. Kh2 {[%clk 0:00:23.2]}
30... Qh8+ {[%clk 0:01:43.7]} 31. Kg1 {[%clk 0:00:24.7]} 31... Rc1+ {[%clk
0:01:44.9]} 32. Be1 {[%clk 0:00:26.4]} 32... Qd4+ {[%clk 0:01:44.9]} 33. Kh2
{[%clk 0:00:25.6]} 33... Qe5+ {[%clk 0:01:44.5]} 34. f4 {[%clk 0:00:12.4]} 34...
Qxf4+ {[%clk 0:01:43.5]} 35. g3 {[%clk 0:00:11.4]} 35... Rc2+ {[%clk 0:01:44]}
0-1

[Event "*** Titled Tuesday 3|2 Blitz"]
[Site "Chess.com"]
[Date "2015.05.05"]
[Round "5"]
[White "ChessTrener"]
[Black "LyonBeast"]
[Result "1-0"]
[WhiteElo "2521"]
[BlackElo "2727"]
[TimeControl "180+2"]
[EndTime "12:05:05 PDT"]
[Termination "ChessTrener won by resignation"]

1. d4 {[%clk 0:03:01.9]} 1... Nf6 {[%clk 0:02:59]} 2. Nf3 {[%clk 0:03:02.9]}
2... g6 {[%clk 0:02:59.1]} 3. Nc3 {[%clk 0:03:02.8]} 3... d5 {[%clk 0:02:57.4]}
4. Bf4 {[%clk 0:03:03.6]} 4... Bg7 {[%clk 0:02:56.3]} 5. e3 {[%clk 0:03:04.9]}
5... c6 {[%clk 0:02:42]} 6. Ne5 {[%clk 0:02:57.6]} 6... Nh5 {[%clk 0:02:41.3]}
7. Be2 {[%clk 0:02:51.7]} 7... Nxf4 {[%clk 0:02:40.9]} 8. exf4 {[%clk
0:02:53.6]} 8... Nd7 {[%clk 0:02:33.5]} 9. h4 {[%clk 0:02:50.6]} 9... h5 {[%clk
0:02:33.5]} 10. Qd2 {[%clk 0:02:45.6]} 10... Qa5 {[%clk 0:02:21.6]} 11. O-O-O
{[%clk 0:02:38]} 11... Nxe5 {[%clk 0:02:20.4]} 12. fxe5 {[%clk 0:02:38.3]} 12...
b5 {[%clk 0:02:12.2]} 13. a3 {[%clk 0:02:34.3]} 13... Bh6 {[%clk 0:01:49.4]} 14.
f4 {[%clk 0:02:31.1]} 14... Qb6 {[%clk 0:01:50.6]} 15. g4 {[%clk 0:02:22.1]}
15... Bxg4 {[%clk 0:01:31.7]} 16. Bxg4 {[%clk 0:02:22.5]} 16... hxg4 {[%clk
0:01:32.2]} 17. h5 {[%clk 0:02:20.5]} 17... gxh5 {[%clk 0:01:31.4]} 18. Rxh5
{[%clk 0:02:17.7]} 18... O-O-O {[%clk 0:01:32.1]} 19. Qh2 {[%clk 0:02:12.9]}
19... c5 {[%clk 0:01:17.3]} 20. Kb1 {[%clk 0:01:57.3]} 20... c4 {[%clk 0:01:04]}
21. Qh4 {[%clk 0:01:50.8]} 21... Qg6 {[%clk 0:00:48.4]} 22. f5 {[%clk
0:01:46.2]} 22... Qg7 {[%clk 0:00:46.9]} 23. Qxe7 {[%clk 0:01:40.6]} 23... g3
{[%clk 0:00:38.5]} 24. Nxb5 {[%clk 0:01:36.9]} 24... Rd7 {[%clk 0:00:39.2]} 25.
Nxa7+ {[%clk 0:01:36.1]} 25... Kc7 {[%clk 0:00:40.1]} 26. Nb5+ {[%clk
0:01:33.5]} 26... Kc8 {[%clk 0:00:41]} 27. Qc5+ {[%clk 0:01:27]} 27... Kb8
{[%clk 0:00:41.8]} 28. Qb6+ {[%clk 0:01:25.7]} 28... Rb7 {[%clk 0:00:42.2]} 29.
Qd6+ {[%clk 0:01:24.5]} 29... Ka8 {[%clk 0:00:42.9]} 30. Qa6+ {[%clk 0:01:23.2]}
30... Kb8 {[%clk 0:00:44]} 31. Nd6 {[%clk 0:01:19.9]} 31... Ra7 {[%clk
0:00:45.1]} 32. Qb5+ {[%clk 0:01:13.3]} 32... Ka8 {[%clk 0:00:46.5]} 33. Qxd5+
{[%clk 0:01:13]} 33... Kb8 {[%clk 0:00:47.8]} 34. Qb5+ {[%clk 0:01:08.5]} 34...
Ka8 {[%clk 0:00:48.9]} 35. Qxc4 {[%clk 0:01:05.6]} 35... Be3 {[%clk 0:00:48.8]}
36. Qc6+ {[%clk 0:00:59.7]} 36... Kb8 {[%clk 0:00:49.2]} 37. Rd3 {[%clk
0:00:59.1]} 1-0